Cogmind - Beta 16 @@@ ROGUE MODE // 2026.02.01 @ 00:03:49 Player: Appleyapple Result: Destroyed by Y-45 Defender with Beam Rifle Performance ------------- Evolutions (1) 500 Regions Visited (3) 600 Robots Destroyed (21) 105 Value Destroyed (633) 633 Prototype IDs (0) 0 Alien Tech Used (0) 0 Bonus (0) 0 TOTAL SCORE: 1838 Bonus ------- None Cogmind --------- Core Integrity 0/400 Matter 293/300 Energy 83/100 System Corruption 0% Temperature Cool (90) Movement Rolling (100) Location -9/Storage Parts ------- > --- POWER (1) -------- (None) > --- PROPULSION (2) --- Compact Wheel Compact Wheel > --- UTILITY (3) ------ Medium Storage Unit Improved Targeting Computer Light Armor Plating > --- WEAPON (3) ------- Medium Laser Medium Laser Katana > --- INVENTORY (10) --- Ion Engine Ion Engine Cooled Ion Engine Flight Unit Flight Unit Light Armor Plating Peak State ------------ > --- POWER ------------ Light Nuclear Core > --- PROPULSION ------- Improved Hover Unit Improved Hover Unit > --- UTILITY ---------- Small Storage Unit Improved Targeting Computer Shield Generator > --- WEAPON ----------- Assault Rifle Light Assault Rifle Grenade Launcher > --- INVENTORY -------- Ion Engine Ion Engine Cooled Ion Engine Flight Unit Flight Unit [Rating: 15] Favorites ----------- Power Ion Engine Engine Ion Engine Power Core Light Nuclear Core Propulsion Improved Hover Unit Treads Light Treads Leg Aluminum Leg Wheel Compact Wheel Hover Unit Improved Hover Unit Flight Unit Flight Unit Utility Improved Targeting Computer Device Shield Generator Storage Small Storage Unit Processor Improved Targeting Computer Protection Light Armor Plating Weapon Light Assault Rifle Energy Gun Small Laser Ballistic Gun Light Assault Rifle Launcher Grenade Launcher Slashing Weapon Katana Build | -11 -10 -9 -9 ------- Run | Yrd Mat Mat Sto Slots Evolved 2 | . . 2 . Power . | . . . . Propulsion . | . . . . Utility 1 | . . 1 . Weapon 1 | . . 1 . Parts Attached 26 | 6 5 4 11 Power 2 | 1 . 1 . Engine 1 | 1 . . . Core 1 | . . 1 . Reactor . | . . . . Propulsion 9 | 2 4 . 3 Treads 2 | 2 . . . Leg 1 | . . . 1 Wheel 2 | . . . 2 Hover 2 | . 2 . . Flight 2 | . 2 . . Utility 5 | 1 1 2 1 Device 1 | . . 1 . Storage 2 | 1 . 1 . Processor 1 | . 1 . . Hackware . | . . . . Protection 1 | . . . 1 Artifact . | . . . . Weapon 10 | 2 . 1 7 Energy Gun 5 | . . . 5 Energy Cannon . | . . . . Ballistic Gun 3 | 2 . . 1 Ballistic Cannon . | . . . . Launcher 1 | . . 1 . Special Weapon . | . . . . Impact Weapon . | . . . . Slashing Weapon 1 | . . . 1 Piercing Weapon . | . . . . Special Melee Weapon . | . . . . Unidentified Prototypes . | . . . . Parts Lost 8 | . . . 8 Power 1 | . . . 1 Propulsion 2 | . . . 2 Utility . | . . . . Weapon 5 | . . . 5 Highest Loss Streak 8 | . . . 8 To Critical Strikes . | . . . . Average Backups 4 | 2 4 4 6 Power 2 | . 1 2 3 Propulsion 2 | 1 2 2 2 Utility . | . . . 1 Weapon . | . . . . Tool/Special . | . . . . Unused Backups 6 | . 2 1 3 Power 2 | . . . 2 Propulsion 2 | . 2 . . Utility 2 | . . 1 1 Weapon . | . . . . Tool/Special . | . . . . Average Slot Usage (%) 85 | . 83 99 77 Engine 5 | . 14 5 . Core 2 | . . 5 2 Treads 3 | . 12 . . Wheel 3 | . . . 8 Hover 10 | . 7 22 4 Flight 2 | . 7 . . Device 4 | . . 11 3 Storage 11 | . 14 11 11 Processor 8 | . 2 11 11 Protection 2 | . . . 5 Energy Gun 5 | . . . 12 Ballistic Gun 16 | . 26 22 7 Launcher 3 | . . 10 2 Slashing Weapon 3 | . . . 7 Peak Build Rating 15 | 6 10 15 15 Average Rating 9 | 4 6 13 10 On Entrance 7 | . 6 10 15 Avg Prop Armor Cover (%) . | . . . . Naked Turns . | . . . . Heaviest Build 23 | 13 13 23 23 Greatest Support 40 | 40 40 14 32 Greatest Overweight (x) 4 | . 4 1 4 Average Overweight (x) . | . . 1 . Largest Inventory Capacity 10 | 8 8 10 10 Average Capacity 8 | 6 8 8 10 Most Carried 10 | 4 8 6 10 Average Carried 5 | 2 4 4 6 Final Capacity 10 | 8 8 10 10 Final Carried 6 | 3 6 6 6 Class Distribution -------------------- 39% | Mutant 36% | Gunner 23% | Scavenger-Mutant Dominant Class ---------------- Mutant | -10/Materials Gunner | -9/Materials Scavenger-Mutant | -9/Storage Resources | -11 -10 -9 -9 ----------- Run | Yrd Mat Mat Sto Matter Collected 677 | 182 48 205 242 Remotely . | . . . . Salvage Created 746 | . 48 205 493 Parts 46 | . 4 8 34 Haulers Intercepted . | . . . . Recyclers Shooed 1 | . . . 1 Parts Field Recycled . | . . . . Retrieved Matter . | . . . . Parts Self-Destructed . | . . . . Prevented . | . . . . Parts Restored . | . . . . Kills | -11 -10 -9 -9 ------- Run | Yrd Mat Mat Sto Combat Hostiles Destroyed 20 | . 3 4 13 Melee 3 | . . . 3 Guns 16 | . 3 4 9 AOE 1 | . . . 1 Classes Destroyed 5 | . 1 2 2 Watcher 1 | . . . 1 Swarmer 6 | . 3 . 3 Grunt 8 | . . 2 6 Duelist 1 | . . . 1 Sentry 5 | . . 2 3 Best Kill Streak 10 | . 3 2 10 Combat Bots Only 10 | . 3 2 10 Max Kills in Single Turn 2 | . 1 1 2 Gunslinging . | . . . . Exploded 1 | . . . 1 Melee 1 | . . . 1 Uniques/NPCs Destroyed . | . . . . Combat | -11 -10 -9 -9 -------- Run | Yrd Mat Mat Sto Hostile Shots Fired 139 | . 6 22 111 Missed 37 | . 4 5 28 Hits 102 | . 2 17 83 Melee 5 | . . . 5 Projectile 97 | . 2 17 78 Critical Strikes 3 | . . 1 2 Damage Taken 1106 | . 16 169 921 Core 423 | . 9 60 354 Absorbed by Shields 179 | . . 67 112 Core Remaining (%) 98 | 100 96 . . Volleys Fired 55 | . 4 20 31 Largest 3 | . 2 2 3 Hottest 100 | . 40 40 100 Shots Fired 114 | . 8 40 66 Gun 113 | . 8 40 65 Cannon . | . . . . Launcher 1 | . . . 1 Special . | . . . . Kinetic 92 | . 8 40 44 Thermal 21 | . . . 21 Explosive 1 | . . . 1 Electromagnetic . | . . . . Robot Hit Streak 23 | . 3 11 23 Robot Miss Streak 4 | . 2 4 3 Penetration Max . | . . . . Secondary Targets 2 | . . . 2 Max Gunslinging Chain 1 | . . . 1 Shots Hit Robots 93 | . 4 26 63 Core Hits 40 | . 3 10 27 Critical Kills . | . . . . Critical Parts Destroyed . | . . . . Critical Strikes 4 | . . . 4 Burn 2 | . . . 2 Sever 2 | . . . 2 Melee Attacks 13 | . . . 13 Impact . | . . . . Slashing 13 | . . . 13 Piercing . | . . . . Sneak Attacks . | . . . . Combat Hostiles . | . . . . Follow-up Attacks . | . . . . Damage Inflicted 1346 | . 36 283 1027 Guns 899 | . 36 283 580 Cannons . | . . . . Explosions 70 | . . . 70 Melee 377 | . . . 377 Ramming . | . . . . Kinetic 673 | . 36 283 354 Thermal 226 | . . . 226 Explosive 70 | . . . 70 Electromagnetic . | . . . . Impact . | . . . . Slashing 377 | . . . 377 Piercing . | . . . . Highest Corruption . | . . . . Average Corruption . | . . . . Corruption Purged . | . . . . Corruption Blocked . | . . . . Overload Shots . | . . . . Overflow Damage 8 | . . . 8 Projectiles . | . . . . Explosions . | . . . . Melee 8 | . . . 8 Knockbacks . | . . . . Impact . | . . . . Kinetic . | . . . . Secondary . | . . . . Self-Inflicted Damage . | . . . . Shots . | . . . . Rammed . | . . . . Targets Rammed . | . . . . Kicked . | . . . . Crushed . | . . . . Highest Temperature 153 | . . 18 153 Average Temperature 31 | . . 4 41 Received Heat Transfer 407 | . . 89 318 Siege Activations . | . . . . Martial Activations . | . . . . Shielding Activations . | . . . . Robots Disrupted . | . . . . Combat Hostiles . | . . . . Robots Corrupted . | . . . . Combat Hostiles . | . . . . Parts Fried . | . . . . Impact Corruptions . | . . . . Robots Melted . | . . . . Combat Hostiles . | . . . . Parts Melted 2 | . . . 2 Heat Transferred 730 | . . . 730 Parts Sabotaged . | . . . . Parts Stolen . | . . . . Parts Stripped . | . . . . Power Chain Reactions . | . . . . Alert | -11 -10 -9 -9 ------- Run | Yrd Mat Mat Sto Maximum Alert Level . | . . . . Low Security (%) 100 | 100 100 100 100 Level 1 . | . . . . Level 2 . | . . . . Level 3 . | . . . . Level 4 . | . . . . Level 5 . | . . . . High Security . | . . . . Max Security . | . . . . Peak Influence 137 | . 60 50 137 Initial 8 | . . . 8 Average 41 | . 15 16 83 Influence Increases 533 | . 74 110 349 Destroy 0b10 Robot/C 400 | . 60 80 260 Destroy 0b10 Robot/NC 5 | . . . 5 Destroy Leader 102 | . 10 30 62 Successful Hack 4 | . 4 . . Destroy Structure 7 | . . . 7 Lose Combat Pursuer 15 | . . . 15 Influence Decreases 442 | . 74 90 278 Entered New Map 12 | . . . 12 Time Decay 350 | . 74 90 186 Lost Part 80 | . . . 80 Squads Dispatched 1 | . . . 1 Investigation . | . . . . Extermination . | . . . . Reinforcement 1 | . . . 1 Assault . | . . . . Garrison . | . . . . Intercept . | . . . . Searches Triggered . | . . . . Construction Impeded . | . . . . Haulers Reinforced . | . . . . Active Scanning Responses . | . . . . Cargo Convoy Interrupts . | . . . . Stealth | -11 -10 -9 -9 --------- Run | Yrd Mat Mat Sto Distress Signals 4 | . 1 . 3 Communications Jammed . | . . . . Distress Signals . | . . . . Times Spotted 30 | . 5 6 19 Peak Tracking Total 6 | . 4 2 6 Tactical Retreats 1 | . . . 1 Traps | -11 -10 -9 -9 ------- Run | Yrd Mat Mat Sto Traps Triggered 1 | . 1 . . Indirectly . | . . . . Trap Hack Attempts . | . . . . Triggered . | . . . . Disarmed . | . . . . Reprogrammed . | . . . . Reused . | . . . . Traps Extracted . | . . . . Installed . | . . . . Triggered . | . . . . Machines | -11 -10 -9 -9 ---------- Run | Yrd Mat Mat Sto Machines Disabled . | . . . . Max in Single Turn . | . . . . Machines Repaired . | . . . . Machines Dismantled . | . . . . Machines Sabotaged . | . . . . Overloaded Fab Kills . | . . . . Hacking | -11 -10 -9 -9 --------- Run | Yrd Mat Mat Sto Machines Accessed 7 | . 4 1 2 Terminals 6 | . 3 1 2 Fabricators . | . . . . Repair Stations . | . . . . Recycling Units 1 | . 1 . . Scanalyzers . | . . . . Garrison Access . | . . . . Total Hacks 12 | . 7 3 2 Successful 8 | . 6 1 1 Failed 4 | . 1 2 1 Catastrophic . | . . . . Database Lockouts . | . . . . Manual . | . . . . Terminals 10 | . 5 3 2 Fabricators . | . . . . Repair Stations . | . . . . Recycling Units 2 | . 2 . . Scanalyzers . | . . . . Garrison Access . | . . . . Terminal Hacks 7 | . 5 1 1 Record 6 | . 4 1 1 Alert Level 1 | . 1 . . Fabricator Hacks . | . . . . Repair Station Hacks . | . . . . Recycling Unit Hacks 1 | . 1 . . Retrieve Components 1 | . 1 . . Scanalyzer . | . . . . Garrison Access Hacks . | . . . . Unauthorized Hacks . | . . . . Terminals . | . . . . Fabricators . | . . . . Repair Stations . | . . . . Recycling Units . | . . . . Scanalyzers . | . . . . Garrison Access . | . . . . Data Cores Recovered . | . . . . Used . | . . . . Hacking Detections 4 | . 3 1 . Full Trace Events . | . . . . Feedback Events . | . . . . Feedback Blocked . | . . . . Robot Schematics Acquired . | . . . . Robots Built . | . . . . Authchips . | . . . . Time . | . . . . Total Robot Build Rating . | . . . . Part Schematics Acquired . | . . . . Parts Built . | . . . . Authchips . | . . . . Time . | . . . . Total Part Build Rating . | . . . . Part Studies Acquired . | . . . . Parts Repaired . | . . . . Time . | . . . . Parts Recycled . | . . . . Recycled Matter . | . . . . Retrieved Matter . | . . . . Retrieved Components . | . . . . Parts Scanalyzed . | . . . . Part Schematics Acquired . | . . . . Parts Damaged . | . . . . Bothacking | -11 -10 -9 -9 ------------ Run | Yrd Mat Mat Sto Used RIF Installer . | . . . . Robots Hacked . | . . . . Non-combat . | . . . . Combat . | . . . . Robot Hacks Applied . | . . . . Relay Couplers Released . | . . . . Fabnet Peak Effective % . | . . . . Robots Rewired . | . . . . Allies Hacked . | . . . . Hacks Repelled . | . . . . Allies | -11 -10 -9 -9 -------- Run | Yrd Mat Mat Sto Total Allies . | . . . . Largest Group . | . . . . Highest-Rated Group . | . . . . Highest-Rated Ally . | . . . . Total Orders . | . . . . Ally Attacks . | . . . . Total Damage . | . . . . Kills . | . . . . Allies Corrupted . | . . . . Allies Melted . | . . . . Intel | -11 -10 -9 -9 ------- Run | Yrd Mat Mat Sto Active Infowar (turns) . | . . . . Robot Analysis Total . | . . . . Derelict Logs Recovered . | . . . . Drone Launches . | . . . . Drone Recoveries . | . . . . Exploration | -11 -10 -9 -9 ------------- Run | Yrd Mat Mat Sto Turns Passed 1011 | 90 274 239 408 Spaces Moved 620 | 52 220 149 199 Core 24 | 6 8 . 10 Treads 109 | 46 63 . . Legs 29 | . . . 29 Wheels 116 | . . . 116 Hover 295 | . 102 149 44 Flight 47 | . 47 . . Fastest Speed 50 | 50 56 116 100 Average Speed 117 | 147 104 116 124 Slowest Speed 250 | 160 250 116 250 Overloaded Moves . | . . . . Propulsion Burnouts . | . . . . Robots Hopped . | . . . . Potential Cave-ins . | . . . . Cave-ins Triggered . | . . . . Exploration Rate (%) 19 | 5 29 18 24 Regions Visited 3 Branch Regions 1 Pre-discovered Areas . | . . . . Known Exits Taken . | . . . . Unknown Exits Taken 3 | 1 1 1 . Scrap Searched . | . . . . Spaces Dug . | . . . . Terrain Destroyed 7 | . . . 7 Melee . | . . . . Projectile . | . . . . AOE 7 | . . . 7 Terrain Rammed . | . . . . Walls Destroyed . | . . . . Machines Disabled . | . . . . Actions | -11 -10 -9 -9 --------- Run | Yrd Mat Mat Sto Total 795 | 66 262 179 288 Wait 15 | . 4 . 11 Move 617 | 51 219 148 199 Hop . | . . . . Pick Up 39 | 9 13 5 12 Fast Attach . | . . . . Attach 32 | 6 10 3 13 Detach 11 | . 6 . 5 Swap 1 | . . 1 . Drop 12 | . 6 2 4 Fire 55 | . 4 20 31 Melee 13 | . . . 13 Ram . | . . . . Kick . | . . . . Crush . | . . . . Escape Stasis . | . . . . Rewire . | . . . . Trap . | . . . . Miscellaneous . | . . . . Route ------- -11/Scrapyard -10/Materials -9/Materials -9/Storage History --------- Turn | Location | Event 61 | -11/Scrapyard | Discovered new exit (range 16) 91 | -11/Scrapyard | Entered Materials 248 | -10/Materials | Discovered new exit (range 14) 304 | -10/Materials | Build established: Mutant 365 | -10/Materials | Entered another Materials area 365 | -9/Materials | Evolved 2 slots: Utility x1, Weapon x1 558 | -9/Materials | Discovered new exit (range 10) 604 | -9/Materials | Entered Storage 655 | -9/Storage | Build established: Gunner 720 | -9/Storage | Core integrity fell below 50% 755 | -9/Storage | Core integrity fell below 20% 780 | -9/Storage | Lost 8 parts (1p2n5w) 795 | -9/Storage | Destroyed 10 combat bots 1012 | -9/Storage | Destroyed by Y-45 Defender with Beam Rifle Last Messages --------------- Self-contained repair facility capable of restoring the integrity of damaged components. Serious internal issues such as faulty prototypes and component deterioration are beyond the scope of repair. Advanced repair stations can complete complex tasks more quickly. 00945_ Terminal unresponsive. 00947_ W-16 Scout suffers critical hit (Burn). 00947_ W-16 Scout destroyed. 00948_ R-06 Scavenger collects Lgt. Ion Engine. 00953_ R-06 Scavenger collects Hover Unit. 00953_ Connecting with Terminal... 00954_ K-01 Serf collects debris. 00984_ Acquired 17 matter. 00986_ Acquired 6 matter. 01009_ Heat Sink melted. 01009_ Beam Rifle melted. 01009_ Y-45 Defender destroyed. 01012_ K-01 Serf collects debris. Map ----- +----------------------------------------------------+ | ############# ##########???????????????????????? | | ????????????# ##############???????????????????? | | ???????#????# # #???????????????????? | | ???????# ??# # #???????????????????? | | ???????# # # #???????????????????? | | ???????# + + ######??????????????? | | ???????# ## # ##"""###????????????? | | ????????????# #########+#####"T"# #????????????? | | ????????????# #???????# ## #????????????? | | ???????????## ##??????# ## #????????????? | | ???????????# ########=## #????????????? | | ???????????# % %r%# #????????????? | | ???????????# +% [ ####+###?????? | | ???????????# !% o# [[[ " / | | ???????????# ! ####### a# [[[ T #### ###?????? | | ???????????#######????## [Y# " #????????????? | | ???????????????????????# =%# #????????????? | | ???????????????????????# m!###"T"####????????????? | | ???????????????????????# k#?#####???????????????? | | ???????????????????????# #?????????????????????? | | ???????????????????????# #?????????????????????? | | ???????????????????????# #?????????????????????? | | ???????????????????????# #?????????????????????? | | ???????????????????????# #?????????????????????? | | ???????????????????????# #?????????????????????? | | ???????????????????????# @ #?????????????????????? | | ???????????????????????# #?????????????????????? | | ???????????????????????# #?????????????????????? | | ???????????????????????# #?????????????????????? | | ???????????????????????# r +?????????????????????? | | ???????????????????????#k u# ????????????????????? | | ???????????????????????# # ???????????????????? | | ???????????????????????#a +? ???????????????????? | | ???????????????????????# #? ??????????????????? | | ???????????????????????# #??##?????????????????? | | ???????????????????????# #?????????????????????? | | ???????????????????????# #?????????????????????? | | ???????????????????????# #?????????????????????? | | ??????????????????????? #?????????????????????? | | ??????????????????????? ??????????????????????? | | ???????????????????????#ka ??????????????????????? | | ???????????????????????? ??????????????????????? | | ?????????????????????????????????????????????????? | | ?????????????????????????????????????????????????? | | ?????????????????????????????????????????????????? | | ?????????????????????????????????????????????????? | | ?????????????????????????????????????????????????? | | ?????????????????????????????????????????????????? | | ?????????????????????????????????????????????????? | | ?????????????????????????????????????????????????? | +----------------------------------------------------+ Best States ------------- Heat Dissipation 28 Energy Generation 14 Energy Capacity 250 Matter Stores 300 Matter Capacity 300 Sight Range 16 Terrain Scan Density 10 Armor Coverage 150 Evasion (%) 53 Targeting Accuracy 6 Recoil Reduction 2 Item Schematics ----------------- None Robot Schematics ------------------ None Fabricated ------------ Nothing Repaired ---------- Nothing Studied --------- None Alien Tech Used ----------------- None Achievements -------------- Hydra Universal Adapter Challenges ------------ None Game ------ Seed AlphaRapidRegenerator Manual? 0 Play Time 00:16:35 Cumulative 2.4 hours Start 2026.01.31 @ 23:36:25 End 2026.02.01 @ 00:03:49 Sessions 1 Manual Loads 0 Difficulty Rogue Special Mode None Game No. 9 Rogue 9 Adventurer 0 Explorer 0 Win Type - Total 0 Types 0/0/0/0/0/0/0/0/0/0 Lore% 1 Gallery% 6 Achievement% 5 Wizard Run 0 Options --------- Layout 1 ASCII 0 Keyboard 0 Movement Arrows Keybinds 0 Fullscreen 2 Font 24/Smallcaps Map View 50x35 Zoom Use 0% Tactical HUD 1 Map Filters NONE Filters NONE Steam 1 RUN: 706fde9c-f5bf-4d25-9395-be7306069972